Workbook

Sheet Tiitel
C11: Aeg & ruum
C13: Biorütmid
C15: Viktoriin

Sheet aeg&ruum_E
C2: Aeg ja ruum
C4: Nimi | D4: Peeter | E4: nimi
C5: pikkus (cm) | D5: 184 | E5: L
C6: mass (kg) | D6: 68 | E6: m
C7: sünniaeg | D7: 1991-10-26 | E7: sa
C8: sugu | D8: mees | E8: sugu
C9: vanus aastates | D9: =(TODAY()-sa)/365.25 -> 23.47980835 | E9: va
C10: vanus päevades | D10: =TODAY()-sa -> 8576 | E10: vp
C11: tähtkuju | D11: =VLOOKUP(DATE(99,MONTH(sa),DAY(sa)),tähtkujud,2) -> Skorpion | E11: =VLOOKUP(DATE(99,MONTH(sa),DAY(sa)),tähtkujud,3) -> e
C12: sünniaasta nimi idamaa kalendris | D12: =INDEX(Ida_aasta,MOD(YEAR(sa)-1899,12)+1) -> siku
C13: ideaalne mass (kg) | D13: =IF(sugu="naine",(3*L-450+va)*0.225+40.5,(3*L-450+va)*0.25+45) -> 76.36995209
C14: rasvasus (%) | D14: =IF(sugu="naine",(m-I_mass)/m*100+22,(m-I_mass)/m*100+15) -> 2.69124693 | E14: =LOOKUP(rasv,IF(sugu="naine",r_naine,r_mees),r_tekst) -> normaalne
C15: keha indeks | D15: =m/(L/100)^2 -> 20.08506616 | E15: =LOOKUP(ind,r_ind,r_tekst) -> normaalne
C16: tihedus (kg/m3) | D16: =8.9*rasv+11*(100-rasv) -> 1094.348381
C17: ruumala (dm3) | D17: =1000*m/tihe -> 62.1374337
C18: pindala (m2) | D18: =(1000*m)^y*L^0.3/3118.2 -> 1.847107167
D19: =(35.75-LOG(m))/53.2 -> 0.6375468249 | E19: y

Sheet biorütmid_1
C2: Biorütmid | J2: Üldine biorütm vahemikus:
K3: =Sünniaeg -> 1942-12-24 | L3: =TODAY() -> 2015-04-19
C4: Nimi | D4: Sünniaeg | F4: algus | G4: jooksev | H4: 0 | J4: max | K4: 3.953751271 | L4: 1950-01-18
C5: =nimi -> Peeter | D5: 1942-12-24 | F5: 2014-02-01 | G5: =alg+H4 -> 2014-02-01 | J5: min | K5: -3.960238678 | L5: 1969-10-16
C7: emotsionaalne | E7: füüsiline | G7: intelektuaalne | I7: sotsiaalne | K7: üldine
B8: max | C8: =MAX(emots) -> 1 | D8: =INDEX(kuupäev,MATCH(C8,emots,0)) -> 2014-02-20 | E8: =MAX(füüs) -> 0.9976687692 | F8: =INDEX(kuupäev,MATCH(E8,füüs,0)) -> 2014-02-25 | G8: =MAX(intel) -> 0.9988673392 | H8: =INDEX(kuupäev,MATCH(G8,intel,0)) -> 2014-02-08 | I8: =MAX(sots) -> 0.9980267284 | J8: =INDEX(kuupäev,MATCH(I8,sots,0)) -> 2014-02-10 | K8: =MAX(üldine) -> 0.8175974112 | L8: =INDEX(kuupäev,MATCH(K8,üldine,0)) -> 2014-02-07
B9: min | C9: =MIN(emots) -> -1 | D9: =INDEX(kuupäev,MATCH(C9,emots,0)) -> 2014-02-06 | E9: =MIN(füüs) -> -0.9976687692 | F9: =INDEX(kuupäev,MATCH(E9,füüs,0)) -> 2014-02-13 | G9: =MIN(intel) -> -0.9988673392 | H9: =INDEX(kuupäev,MATCH(G9,intel,0)) -> 2014-02-25 | I9: =MIN(sots) -> -0.9980267284 | J9: =INDEX(kuupäev,MATCH(I9,sots,0)) -> 2014-02-23 | K9: =MIN(üldine) -> -0.8079069131 | L9: =INDEX(kuupäev,MATCH(K9,üldine,0)) -> 2014-03-03

Sheet biorütmid_2
B2: Koostöö, sõprus, armastus jm
C3: Isik_1 | E3: Isik_2 | G3: algus | H3: jooksev | I3: 25
B4: Nimi | C4: Pille | E4: Kalle | G4: 2014-01-01 | H4: =G4+I3 -> 2014-01-26
B5: Sünniaeg | C5: 1980-06-24 | E5: 1980-12-24 | G5: =IF(valik=TRUE,"Max_Ü koos","Max_"&lüh&" koos") -> Max_Ü koos | H5: =IF(valik=TRUE,"Min_Ü koos","Min_"&lüh&" koos") -> Min_Ü koos | I5: Biorütm
B6: max Üld | C6: =IF(valik=TRUE,MAX(Yld_1),"") -> 1.31403662 | D6: =IF(valik=TRUE,INDEX(kuup,MATCH(C6,Yld_1,0)),"") -> 2014-02-10 | E6: =IF(valik=TRUE,MAX(Yld_2),"") -> 1.884654311 | F6: =IF(valik=TRUE,INDEX(kuup,MATCH(E6,Yld_2,0)),"") -> 2014-02-14 | G6: =IF(valik=TRUE,MAX(Koos),MAX(koos_S)) -> 2.914586896 | H6: =IF(valik=TRUE,MIN(Koos),MIN(koos_S)) -> -3.111455966 | I6: füüsiline
B7: min Üld | C7: =IF(valik=TRUE,MIN(Yld_1),"") -> -1.356297705 | D7: =IF(valik=TRUE,INDEX(kuup,MATCH(C7,Yld_1,0)),"") -> 2014-02-23 | E7: =IF(valik=TRUE,MIN(Yld_2),"") -> -2.303128583 | F7: =IF(valik=TRUE,INDEX(kuup,MATCH(E7,Yld_2,0)),"") -> 2014-02-02 | G7: =IF(valik=TRUE,INDEX(kuup,MATCH(G6,Koos,0)),INDEX(kuup,MATCH(G6,koos_S,0))) -> 2014-02-13 | H7: =IF(valik=TRUE,INDEX(kuup,MATCH(H6,Koos,0)),INDEX(kuup,MATCH(H6,koos_S,0))) -> 2014-02-24 | K7: TRUE
B8: ="max "&I6 -> max füüsiline | C8: =MAX(S_1) -> 0.9976687692 | D8: =MAX(S_2) -> 0.9976687692
B9: ="min "&I6 -> min füüsiline | C9: =MIN(S_2) -> -0.9976687692 | D9: =MIN(S_2) -> -0.9976687692

Sheet biotabel_1
A1: kuupäev | B1: t | C1: emots | D1: füüs | E1: intel | F1: sots | G1: üldine
A2: =jooksev -> 2014-02-01 | B2: =A2-Sünniaeg -> 25972 | C2: =SIN(2*PI()*t/28) -> -0.4338837391 | D2: =SIN(2*PI()*t/23) -> 0.9790840877 | E2: =SIN(2*PI()*t/33) -> 0.1892512444 | F2: =SIN(2*PI()*t/25) -> -0.6845471059 | G2: =SUM(C2:F2) -> 0.049904487
A3: =A2+1 -> 2014-02-02 | B3: =A3-Sünniaeg -> 25973 | C3: =SIN(2*PI()*t/28) -> -0.6234898019 | D3: =SIN(2*PI()*t/23) -> 0.9976687692 | E3: =SIN(2*PI()*t/33) -> 0.3716624557 | F3: =SIN(2*PI()*t/25) -> -0.4817536741 | G3: =SUM(C3:F3) -> 0.2640877489
A4: =A3+1 -> 2014-02-03 | B4: 25974 | C4: -0.7818314825 | D4: 0.9422609221 | E4: 0.5406408175 | F4: -0.2486898872 | G4: 0.4523803699
A5: 2014-02-04 | B5: 25975 | C5: -0.9009688679 | D5: 0.816969893 | E5: 0.6900790115 | F5: -3.469564046e-13 | G5: 0.6060800366
A6: 2014-02-05 | B6: 25976 | C6: -0.9749279122 | D6: 0.6310879443 | E6: 0.8145759521 | F6: 0.2486898872 | G6: 0.7194258714
A7: 2014-02-06 | B7: 25977 | C7: -1 | D7: 0.3984010898 | E7: 0.9096319954 | F7: 0.4817536741 | G7: 0.7897867593
A8: 2014-02-07 | B8: 25978 | C8: -0.9749279122 | D8: 0.1361666491 | E8: 0.9718115683 | F8: 0.6845471059 | G8: 0.8175974112
A9: 2014-02-08 | B9: 25979 | C9: -0.9009688679 | D9: -0.1361666491 | E9: 0.9988673392 | F9: 0.8443279255 | G9: 0.8060597477
A10: 2014-02-09 | B10: 25980 | C10: -0.7818314825 | D10: -0.3984010898 | E10: 0.9898214419 | F10: 0.9510565163 | G10: 0.7606453859
A11: 2014-02-10 | B11: 25981 | C11: -0.6234898019 | D11: -0.6310879443 | E11: 0.9450008187 | F11: 0.9980267284 | G11: 0.688449801
A12: 2014-02-11 | B12: 25982 | C12: -0.4338837391 | D12: -0.816969893 | E12: 0.8660254038 | F12: 0.9822872507 | G12: 0.5974590224
A13: 2014-02-12 | B13: 25983 | C13: -0.222520934 | D13: -0.9422609221 | E13: 0.7557495744 | F13: 0.9048270525 | G13: 0.4957947707
A14: 2014-02-13 | B14: 25984 | C14: -1.387778781e-17 | D14: -0.9976687692 | E14: 0.6181589862 | F14: 0.7705132428 | G14: 0.3910034598
A15: 2014-02-14 | B15: 25985 | C15: 0.222520934 | D15: -0.9790840877 | E15: 0.4582265217 | F15: 0.5877852523 | G15: 0.2894486203
A16: 2014-02-15 | B16: 25986 | C16: 0.4338837391 | D16: -0.8878852184 | E16: 0.2817325568 | F16: 0.3681245527 | G16: 0.1958556302
A17: 2014-02-16 | B17: 25987 | C17: 0.6234898019 | D17: -0.7308359643 | E17: 0.0950560433 | F17: 0.1253332336 | G17: 0.1130431144
A18: 2014-02-17 | B18: 25988 | C18: 0.7818314825 | D18: -0.51958395 | E18: -0.0950560433 | F18: -0.1253332336 | G18: 0.04185825557
A19: 2014-02-18 | B19: 25989 | C19: 0.9009688679 | D19: -0.2697967712 | E19: -0.2817325568 | F19: -0.3681245527 | G19: -0.01868501278
A20: 2014-02-19 | B20: 25990 | C20: 0.9749279122 | D20: -2.626726961e-13 | E20: -0.4582265217 | F20: -0.5877852523 | G20: -0.07108386184
A21: 2014-02-20 | B21: 25991 | C21: 1 | D21: 0.2697967712 | E21: -0.6181589862 | F21: -0.7705132428 | G21: -0.1188754578
A22: 2014-02-21 | B22: 25992 | C22: 0.9749279122 | D22: 0.51958395 | E22: -0.7557495744 | F22: -0.9048270525 | G22: -0.1660647646
A23: 2014-02-22 | B23: 25993 | C23: 0.9009688679 | D23: 0.7308359643 | E23: -0.8660254038 | F23: -0.9822872507 | G23: -0.2165078223
A24: 2014-02-23 | B24: 25994 | C24: 0.7818314825 | D24: 0.8878852184 | E24: -0.9450008187 | F24: -0.9980267284 | G24: -0.2733108463
A25: 2014-02-24 | B25: 25995 | C25: 0.6234898019 | D25: 0.9790840877 | E25: -0.9898214419 | F25: -0.9510565163 | G25: -0.3383040686
A26: 2014-02-25 | B26: 25996 | C26: 0.4338837391 | D26: 0.9976687692 | E26: -0.9988673392 | F26: -0.8443279255 | G26: -0.4116427564
A27: 2014-02-26 | B27: 25997 | C27: 0.222520934 | D27: 0.9422609221 | E27: -0.9718115683 | F27: -0.6845471059 | G27: -0.4915768182
A28: 2014-02-27 | B28: 25998 | C28: 5.792287223e-13 | D28: 0.816969893 | E28: -0.9096319954 | F28: -0.4817536741 | G28: -0.5744157764
A29: 2014-02-28 | B29: 25999 | C29: -0.222520934 | D29: 0.6310879443 | E29: -0.8145759521 | F29: -0.2486898872 | G29: -0.6546988288
A30: 2014-03-01 | B30: 26000 | C30: -0.4338837391 | D30: 0.3984010898 | E30: -0.6900790115 | F30: 3.1360331e-13 | G30: -0.7255616608
A31: 2014-03-02 | B31: 26001 | C31: -0.6234898019 | D31: 0.1361666491 | E31: -0.5406408175 | F31: 0.2486898872 | G31: -0.7792740831
A32: 2014-03-03 | B32: 26002 | C32: -0.7818314825 | D32: -0.1361666491 | E32: -0.3716624557 | F32: 0.4817536741 | G32: -0.8079069131

Sheet biotabel_2
A1: kuup | B1: t_1 | C1: t_2 | D1: =nimi_1&"_"&lüh -> Pille_F | E1: =nimi_2&"_"&lüh -> Kalle_F | F1: ="koos_"&lüh -> koos_F | G1: =nimi_1&"_Ü" -> Pille_Ü | H1: =nimi_2&"_Ü" -> Kalle_Ü | I1: Koos_Ü
A2: =algus -> 2014-01-26 | B2: =kuup-saeg_1 -> 12269 | C2: =kuup-saeg_2 -> 12086 | D2: =k*SIN(2*PI()*t_1/a) -> 0.3984010898 | E2: =k*SIN(2*PI()*t_2/a) -> 0.1361666491 | F2: =D2+E2 -> 0.5345677389 | G2: =ky*(SIN(2*PI()*t_1/23)+SIN(2*PI()*t_1/33)+SIN(2*PI()*t_1/28)+SIN(2*PI()*t_1/25)) -> -0.670468339 | H2: =ky*(SIN(2*PI()*t_2/23)+SIN(2*PI()*t_2/33)+SIN(2*PI()*t_2/28)+SIN(2*PI()*t_2/25)) -> 0.7213270585 | I2: =G2+H2 -> 0.05085871949
A3: =A2+1 -> 2014-01-27 | B3: =kuup-saeg_1 -> 12270 | C3: =kuup-saeg_2 -> 12087 | D3: =k*SIN(2*PI()*t_1/a) -> 0.1361666491 | E3: =k*SIN(2*PI()*t_2/a) -> -0.1361666491 | F3: =D3+E3 -> 7.709111127e-13 | G3: =ky*(SIN(2*PI()*t_1/23)+SIN(2*PI()*t_1/33)+SIN(2*PI()*t_1/28)+SIN(2*PI()*t_1/25)) -> -0.7495939504 | H3: =ky*(SIN(2*PI()*t_2/23)+SIN(2*PI()*t_2/33)+SIN(2*PI()*t_2/28)+SIN(2*PI()*t_2/25)) -> 0.07801915845 | I3: =G3+H3 -> -0.6715747919
A4: =A3+1 -> 2014-01-28 | B4: 12271 | C4: 12088 | D4: -0.1361666491 | E4: -0.3984010898 | F4: -0.5345677389 | G4: -0.7950705266 | H4: -0.5536614169 | I4: -1.348731944
A5: 2014-01-29 | B5: 12272 | C5: 12089 | D5: -0.3984010898 | E5: -0.6310879443 | F5: -1.029489034 | G5: -0.7980992951 | H5: -1.133187093 | I5: -1.931286388
A6: 2014-01-30 | B6: 12273 | C6: 12090 | D6: -0.6310879443 | E6: -0.816969893 | F6: -1.448057837 | G6: -0.752513568 | H6: -1.623933483 | I6: -2.376447051
A7: 2014-01-31 | B7: 12274 | C7: 12091 | D7: -0.816969893 | E7: -0.9422609221 | F7: -1.759230815 | G7: -0.6554907534 | H7: -1.995584047 | I7: -2.6510748
A8: 2014-02-01 | B8: 12275 | C8: 12092 | D8: -0.9422609221 | E8: -0.9976687692 | F8: -1.939929691 | G8: -0.5080223646 | H8: -2.226100782 | I8: -2.734123147
A9: 2014-02-02 | B9: 12276 | C9: 12093 | D9: -0.9976687692 | E9: -0.9790840877 | F9: -1.976752857 | G9: -0.3150951429 | H9: -2.303128583 | I9: -2.618223726
A10: 2014-02-03 | B10: 12277 | C10: 12094 | D10: -0.9790840877 | E10: -0.8878852184 | F10: -1.866969306 | G10: -0.08555823526 | H10: -2.224739643 | I10: -2.310297878
A11: 2014-02-04 | B11: 12278 | C11: 12095 | D11: -0.8878852184 | E11: -0.7308359643 | F11: -1.618721183 | G11: 0.1683243432 | H11: -1.999469458 | I11: -1.831145115
A12: 2014-02-05 | B12: 12279 | C12: 12096 | D12: -0.7308359643 | E12: -0.51958395 | F12: -1.250419914 | G12: 0.4316118447 | H12: -1.645644432 | I12: -1.214032588
A13: 2014-02-06 | B13: 12280 | C13: 12097 | D13: -0.51958395 | E13: -0.2697967712 | F13: -0.7893807212 | G13: 0.6876678386 | H13: -1.190049465 | I13: -0.5023816262
A14: 2014-02-07 | B14: 12281 | C14: 12098 | D14: -0.2697967712 | E14: -4.273135665e-13 | F14: -0.2697967712 | G14: 0.9193161075 | H14: -0.6660289212 | I14: 0.2532871863
A15: 2014-02-08 | B15: 12282 | C15: 12099 | D15: -1.450567097e-13 | E15: 0.2697967712 | F15: 0.2697967712 | G15: 1.110087764 | H15: -0.1111528885 | I15: 0.9989348751
A16: 2014-02-09 | B16: 12283 | C16: 12100 | D16: 0.2697967712 | E16: 0.51958395 | F16: 0.7893807212 | G16: 1.245466524 | H16: 0.4353900287 | I16: 1.680856553
A17: 2014-02-10 | B17: 12284 | C17: 12101 | D17: 0.51958395 | E17: 0.7308359643 | F17: 1.250419914 | G17: 1.31403662 | H17: 0.9354939006 | I17: 2.24953052
A18: 2014-02-11 | B18: 12285 | C18: 12102 | D18: 0.7308359643 | E18: 0.8878852184 | F18: 1.618721183 | G18: 1.308442658 | H18: 1.354745363 | I18: 2.663188021
A19: 2014-02-12 | B19: 12286 | C19: 12103 | D19: 0.8878852184 | E19: 0.9790840877 | F19: 1.866969306 | G19: 1.226082678 | H19: 1.664763854 | I19: 2.890846532
A20: 2014-02-13 | B20: 12287 | C20: 12104 | D20: 0.9790840877 | E20: 0.9976687692 | F20: 1.976752857 | G20: 1.069473857 | H20: 1.845113039 | I20: 2.914586896
A21: 2014-02-14 | B21: 12288 | C21: 12105 | D21: 0.9976687692 | E21: 0.9422609221 | F21: 1.939929691 | G21: 0.8462536275 | H21: 1.884654311 | I21: 2.730907938
A22: 2014-02-15 | B22: 12289 | C22: 12106 | D22: 0.9422609221 | E22: 0.816969893 | F22: 1.759230815 | G22: 0.5688055538 | H22: 1.782252152 | I22: 2.351057706
A23: 2014-02-16 | B23: 12290 | C23: 12107 | D23: 0.816969893 | E23: 0.6310879443 | F23: 1.448057837 | G23: 0.2535274233 | H23: 1.546785985 | I23: 1.800313409
A24: 2014-02-17 | B24: 12291 | C24: 12108 | D24: 0.6310879443 | E24: 0.3984010898 | F24: 1.029489034 | G24: -0.08021367556 | H24: 1.196471064 | I24: 1.116257388
A25: 2014-02-18 | B25: 12292 | C25: 12109 | D25: 0.3984010898 | E25: 0.1361666491 | F25: 0.5345677389 | G25: -0.4113699193 | H25: 0.7575383702 | I25: 0.3461684509
A26: 2014-02-19 | B26: 12293 | C26: 12110 | D26: 0.1361666491 | E26: -0.1361666491 | F26: -8.737455204e-14 | G26: -0.718655711 | H26: 0.2623673588 | I26: -0.4562883521
A27: 2014-02-20 | B27: 12294 | C27: 12111 | D27: -0.1361666491 | E27: -0.3984010898 | F27: -0.5345677389 | G27: -0.9820421952 | H27: -0.2527974711 | I27: -1.234839666
A28: 2014-02-21 | B28: 12295 | C28: 12112 | D28: -0.3984010898 | E28: -0.6310879443 | F28: -1.029489034 | G28: -1.184194326 | H28: -0.7503872055 | I28: -1.934581532
A29: 2014-02-22 | B29: 12296 | C29: 12113 | D29: -0.6310879443 | E29: -0.816969893 | F29: -1.448057837 | G29: -1.311743374 | H29: -1.194130473 | I29: -2.505873846
A30: 2014-02-23 | B30: 12297 | C30: 12114 | D30: -0.816969893 | E30: -0.9422609221 | F30: -1.759230815 | G30: -1.356297705 | H30: -1.55157614 | I30: -2.907873845
A31: 2014-02-24 | B31: 12298 | C31: 12115 | D31: -0.9422609221 | E31: -0.9976687692 | F31: -1.939929691 | G31: -1.315112088 | H31: -1.796343878 | I31: -3.111455966
A32: 2014-02-25 | B32: 12299 | C32: 12116 | D32: -0.9976687692 | E32: -0.9790840877 | F32: -1.976752857 | G32: -1.191359475 | H32: -1.909949291 | I32: -3.101308766

Sheet Eesti
C2: Viktoriin "Meie kodumaa" | H2: =SUM(H5:H184) -> 4
D3: Sisesta sinistesse lahtritesse vastused
B4: 1. | C4: Mis on Eesti presidendi perekonnanimi?
D5: Ilves | H5: =IF(D5<>"",IF(D5=I5,2,0),"") -> 2 | I5: Ilves
B6: 2. | C6: Mis on Eesti esimese naisluuletaja perekonnanimi?
D7: Koidula | H7: =IF(D7<>"",IF(D7=I7,2,0),"") -> 2 | I7: Koidula
B8: 3. | C8: Mis oli Eesti esimese presidendi perekonnanimi?
H9: =IF(D9<>"",IF(D9=I9,2,0),"") ->  | I9: Päts
B10: 4. | C10: Koht, kus asub presidendi loss?
H11: =IF(D11<>"",IF(OR(D11=I11,D11=J11),2,0),"") ->  | I11: Kadriorg | J11: Tallinnas
B12: 5. | C12: Koht, kus on Kalevi haud?
H13: =IF(D13<>"",IF(D13=I13,2,0),"") ->  | I13: Toompea
B14: 6. | C14: Mis järv tekkis Linda pisaratest?
H15: =IF(D15<>"",IF(D15=I15,2,0),"") ->  | I15: Ülemiste
B16: 7. | C16: Mis on Eesti rahvuslind?
H17: =IF(D17<>"",IF(D17=I17,2,0),"") ->  | I17: suitsupääsuke
B18: 8. | C18: Mis on Eesti rahvuslill?
H19: =IF(D19<>"",IF(D19=I19,2,0),"") ->  | I19: rukkilill
B20: 9. | C20: Mis on Eesti rahvuskivi?
H21: =IF(D21<>"",IF(D21=I21,2,0),"") ->  | I21: paekivi
B22: 10. | C22: Mis on Kalevipoja nimi?
H23: =IF(D23<>"",IF(D23=I23,2,0),"") ->  | I23: ei tea
B24: 11. | C24: Kes on Eesti põhjanaaber?
H25: =IF(D25<>"",IF(D25=I25,2,0),"") ->  | I25: Soome
B26: 12. | C26: Kes on Eesti lõunanaaber?
H27: =IF(D27<>"",IF(D27=I27,2,0),"") ->  | I27: Läti
B28: 13. | C28: Kes on Eesti idanaaber?
H29: =IF(D29<>"",IF(D29=I29,2,0),"") ->  | I29: Venemaa
B30: 14. | C30: Mitu linna on Eestis?
H31: =IF(D31<>"",IF(D31=I31,2,0),"") ->  | I31: 33

Sheet abi
B2: rütmid | C2: jagajad | D2: lühendid | F2: k | G2: ky
B3: emotsionaalne | C3: 28 | D3: E | F3: =IF(K_rütm="",0,1) -> 1 | G3: =IF(valik=TRUE,1,0) -> 1
B4: füüsiline | C4: 23 | D4: F
B5: intelektuaalne | C5: 33 | D5: I
B6: sotsiaalne | C6: 25 | D6: S
C7: 1 | D7: 1
B9: =K_rütm -> füüsiline | C9: =IF(K_rütm="",1,LOOKUP(B9,rütmid,jagajad)) -> 23 | D9: =IF(K_rütm="","",LOOKUP(B9,rütmid,lühendid)) -> F
B14: r_ind | C14: r_mees | D14: r_naine | E14: r_tekst
B15: 0 | C15: -50 | D15: -50 | E15: kondibukett
B16: 18 | C16: -10 | D16: 5 | E16: normaalne
B17: 25 | C17: 23 | D17: 38 | E17: ülekaal
B18: 30 | C18: 32 | D18: 50 | E18: paksuke

Sheet tabelid
C2: Tähtkujud | G2: Aastad idamaa kalendris
B3: Nr | C3: Algus | D3: Kuju | E3: Sümbol | G3: nr | H3: Aasta nimeus
B4: 0 | C4: 1999-01-01 | D4: Kaljukits | E4: g | G4: 0 | H4: sea
B5: 1 | C5: 1999-01-20 | D5: Veevalaja | E5: h | G5: 1 | H5: roti
B6: 2 | C6: 1999-02-19 | D6: Kalad | E6: i | G6: 2 | H6: härja
B7: 3 | C7: 1999-03-21 | D7: Jäär | E7: ^ | G7: 3 | H7: tiigri
B8: 4 | C8: 1999-04-20 | D8: Sõnn | E8: _ | G8: 4 | H8: jänese
B9: 5 | C9: 1999-05-21 | D9: Kaksikud | E9: ` | G9: 5 | H9: draakoni
B10: 6 | C10: 1999-06-22 | D10: Vähk | E10: a | G10: 6 | H10: mao
B11: 7 | C11: 1999-07-23 | D11: Lõvi | E11: b | G11: 7 | H11: hobuse
B12: 8 | C12: 1999-08-23 | D12: Neitsi | E12: c | G12: 8 | H12: siku
B13: 9 | C13: 1999-09-23 | D13: Kaalud | E13: d | G13: 9 | H13: ahvi
B14: 10 | C14: 1999-10-23 | D14: Skorpion | E14: e | G14: 10 | H14: kuke
B15: 11 | C15: 1999-11-23 | D15: Ambur | E15: f | G15: 11 | H15: koera
B16: 12 | C16: 1999-12-22 | D16: Kaljukits | E16: g
